[Event "FIDE WSTC Open 65 2025"]
[Site "Prague"]
[Date "2025.02.18"]
[Round "2.7"]
[White "Roos, Louis"]
[Black "Theon, Pierre"]
[Result "1-0"]
[Annotator "ChessBase"]
[ECO "D02"]
[WhiteElo "2312"]
[BlackElo "2079"]
[PlyCount "91"]
[EventDate "2025.02.17"]
[EventType "team-tourn"]
[EventCountry "CZE"]
[SourceTitle "playchess.com"]
[Source "ChessBase"]
[SourceQuality "1"]
[TimeControl "40/5400+30:1800+30"]

1. Nf3 {[%emt 0:00:33]} c5 {[%emt 0:00:10]} 2. g3 {[%emt 0:00:52]} Nc6 {[%emt 0:01:09]} 3. Bg2 {[%emt 0:00:30]} d5 {[%emt 0:00:08]} 4. d4 {[%emt 0:00:36]} e6 {[%emt 0:00:43]} 5. O-O {[%emt 0:04:45]} Nf6 {[%emt 0:00:04]} 6. c3 {[%emt 0:10:21]} Be7 {[%emt 0:02:04]} 7. Bf4 {[%emt 0:03:00]} cxd4 {[%emt 0:03:50]} 8. cxd4 {[%emt 0:00:32]} Qb6 {[%emt 0:00:15]} 9. b3 {[%emt 0:10:18]} Bd7 {[%emt 0:03:55]} 10. Nc3 {[%emt 0:02:49]} O-O {[%emt 0:04:02]} 11. Na4 {[%emt 0:08:33]} Qb5 {[%emt 0:08:59]} 12. Ne5 {[%emt 0:01:56]} Nxe5 {[%emt 0:17:17]} 13. dxe5 {[%emt 0:00:23]} Ne4 {[%emt 0:00:46]} 14. Bxe4 {[%emt 0:03:06]} dxe4 {[%emt 0:00:05]} 15. Nc3 {[%emt 0:00:24]} Qc6 {[%emt 0:00:30]} 16. Nxe4 {[%emt 0:01:41]} Rad8 {[%emt 0:02:01]} 17. Qd3 {[%emt 0:09:21]} Be8 {[%emt 0:04:38]} 18. Qe3 {[%emt 0:01:38]} Qd5 {[%emt 0:02:59]} 19. f3 {[%emt 0:04:06]} h6 {[%emt 0:07:19]} 20. h4 {[%emt 0:05:46]} Bc6 {[%emt 0:00:39]} 21. Rac1 {[%emt 0:07:19]} Qa5 {[%emt 0:04:37]} 22. Rc2 {[%emt 0:03:41]} Rd5 {[%emt 0:01:16]} 23. Kg2 {[%emt 0:01:23]} Rfd8 {[%emt 0:01:29]} 24. Rfc1 {[%emt 0:06:20]} Ba3 {[%emt 0:05:53]} 25. Rb1 {[%emt 0:01:51]} Rd1 {[%emt 0:14:33]} 26. Rxd1 {[%emt 0:00:23]} Rxd1 {[%emt 0:00:59]} 27. Nf2 {[%emt 0:00:31]} Ra1 {[%emt 0:00:36]} 28. Qd2 {[%emt 0:01:46]} Qb6 {[%emt 0:08:39]} 29. Be3 {[%emt 0:01:09]} Qb5 {[%emt 0:00:38]} 30. Bxa7 {[%emt 0:03:01]} Bb4 {[%emt 0:02:13]} 31. Qd8+ {[%emt 0:00:36]} Kh7 {[%emt 0:00:12]} 32. Qd3+ {[%emt 0:00:13]} Qxd3 {[%emt 0:00:38]} 33. Nxd3 {[%emt 0:00:19]} Be7 {[%emt 0:00:44]} 34. Bc5 {[%emt 0:03:07]} Bd8 {[%emt 0:00:31]} 35. h5 {[%emt 0:03:06]} g6 {[%emt 0:00:34]} 36. hxg6+ {[%emt 0:00:33]} Kxg6 {[%emt 0:00:03]} 37. Nb4 {[%emt 0:00:28]} Be8 {[%emt 0:01:19]} 38. Bd4 {[%emt 0:00:55]} Rd1 {[%emt 0:00:11]} 39. Nd3 {[%emt 0:00:20]} Bb5 {[%emt 0:00:49]} 40. Nf4+ {[%emt 0:00:13]} Kf5 {[%emt 0:00:13]} 41. Be3 {[%emt 0:30:28]} Bc6 {[%emt 0:32:37]} 42. Rc5 {[%emt 0:00:00]} Bd5 {[%emt 0:00:00]} 43. Nxd5 {[%emt 0:00:00]} exd5 {[%emt 0:00:00]} 44. Rb5 {[%emt 0:00:00]} d4 {[%emt 0:00:00]} 45. Rd5 {[%emt 0:00:00]} Bb6 {[%emt 0:00:00]} 46. Bxh6 {[%emt 0:00:00]} 1-0

[Event "FIDE WSTC Open 65 2025"]
[Site "Prague"]
[Date "2025.02.18"]
[Round "2.8"]
[White "Pivard, Jean-Louis"]
[Black "Giffard, Nicolas"]
[Result "0-1"]
[Annotator "ChessBase"]
[ECO "A31"]
[WhiteElo "1970"]
[BlackElo "2154"]
[PlyCount "88"]
[EventDate "2025.02.17"]
[EventType "team-tourn"]
[EventCountry "CZE"]
[SourceTitle "playchess.com"]
[Source "ChessBase"]
[SourceQuality "1"]
[TimeControl "40/5400+30:1800+30"]

1. d4 {[%emt 0:00:04]} Nf6 {[%emt 0:00:18]} 2. Nf3 {[%emt 0:00:35]} e6 {[%emt 0:00:10]} 3. c4 {[%emt 0:00:35]} c5 {[%emt 0:00:11]} 4. Nc3 {[%emt 0:02:58]} cxd4 {[%emt 0:04:25]} 5. Nxd4 {[%emt 0:01:15]} a6 {[%emt 0:00:40]} 6. a3 {[%emt 0:03:29]} b6 {[%emt 0:01:04]} 7. e4 {[%emt 0:01:27]} d6 {[%emt 0:00:10]} 8. Be2 {[%emt 0:00:20]} Bb7 {[%emt 0:00:11]} 9. f3 {[%emt 0:02:14]} Be7 {[%emt 0:02:01]} 10. O-O {[%emt 0:01:14]} O-O {[%emt 0:00:09]} 11. Be3 {[%emt 0:01:18]} Nbd7 {[%emt 0:00:32]} 12. Rc1 {[%emt 0:21:20]} Rc8 {[%emt 0:08:02]} 13. b4 {[%emt 0:01:09]} Re8 {[%emt 0:03:02]} 14. Qb3 {[%emt 0:10:24]} Bf8 {[%emt 0:01:48]} 15. Bg5 {[%emt 0:06:21]} h6 {[%emt 0:02:00]} 16. Bh4 {[%emt 0:00:05]} Ne5 {[%emt 0:03:17]} 17. Rfd1 {[%emt 0:05:37]} g5 {[%emt 0:04:34]} 18. Bg3 {[%emt 0:01:25]} Nfd7 {[%emt 0:00:10]} 19. Nc2 {[%emt 0:07:45]} Qf6 {[%emt 0:03:51]} 20. Ne3 {[%emt 0:00:36]} Red8 {[%emt 0:01:02]} 21. h3 {[%emt 0:02:26]} h5 {[%emt 0:00:41]} 22. Rc2 {[%emt 0:04:35]} Rc7 {[%emt 0:00:26]} 23. Rcd2 {[%emt 0:00:42]} Rdc8 {[%emt 0:00:11]} 24. Rxd6 {[%emt 0:01:12]} Bxd6 {[%emt 0:00:30]} 25. Rxd6 {[%emt 0:00:05]} Qe7 {[%emt 0:01:48]} 26. Rd2 {[%emt 0:10:53]} f6 {[%emt 0:03:04]} 27. Ncd5 {[%emt 0:03:30]} exd5 {[%emt 0:00:50]} 28. exd5 {[%emt 0:00:05]} Qh7 {[%emt 0:03:50]} 29. c5 {[%emt 0:02:13]} bxc5 {[%emt 0:00:08]} 30. d6+ {[%emt 0:01:31]} c4 {[%emt 0:00:11]} 31. Qa2 {[%emt 0:03:19]} Rc6 {[%emt 0:01:01]} 32. Bxe5 {[%emt 0:02:06]} Nxe5 {[%emt 0:01:48]} 33. d7 {[%emt 0:00:31]} Nxd7 {[%emt 0:01:06]} 34. Bxc4+ {[%emt 0:00:20]} Kf8 {[%emt 0:10:11]} 35. Be6 {[%emt 0:00:37]} R6c7 {[%emt 0:00:28]} 36. Nf5 {[%emt 0:02:17]} Rb8 {[%emt 0:01:50]} 37. Bxd7 {[%emt 0:01:35]} Rxd7 {[%emt 0:00:09]} 38. Qe6 {[%emt 0:00:02]} Rxd2 {[%emt 0:02:01]} 39. Qxf6+ {[%emt 0:00:05]} Ke8 {[%emt 0:01:44]} 40. Qe5+ {[%emt 0:00:23]} Kd7 {[%emt 0:01:44]} 41. Qxb8 {[%emt 0:03:50]} Qxf5 {[%emt 0:00:28]} 42. Qxb7+ {[%emt 0:00:08]} Ke8 {[%emt 0:01:33]} 43. Qxa6 {[%emt 0:04:29]} Rd1+ {[%emt 0:03:53]} 44. Kf2 {[%emt 0:00:27]} Qc2+ {[%emt 0:00:09]} 0-1

[Event "FIDE WSTC Open 65 2025"]
[Site "Prague"]
[Date "2025.02.18"]
[Round "2.9"]
[White "Fernandes Jr., Jose Costa"]
[Black "Garcia Palermo, Carlos Horacio"]
[Result "0-1"]
[Annotator "ChessBase"]
[ECO "C10"]
[WhiteElo "2199"]
[BlackElo "2412"]
[PlyCount "134"]
[EventDate "2025.02.17"]
[EventType "team-tourn"]
[EventCountry "CZE"]
[SourceTitle "playchess.com"]
[Source "ChessBase"]
[SourceQuality "1"]
[TimeControl "40/5400+30:1800+30"]

1. e4 {[%emt 0:00:05]} e6 {[%emt 0:00:15]} 2. d4 {[%emt 0:00:08]} d5 {[%emt 0:00:07]} 3. Nd2 {[%emt 0:00:06]} dxe4 {[%emt 0:00:29]} 4. Nxe4 {[%emt 0:00:08]} Bd7 {[%emt 0:00:07]} 5. Nf3 {[%emt 0:01:06]} Bc6 {[%emt 0:00:16]} 6. Bd3 {[%emt 0:00:21]} Nd7 {[%emt 0:00:22]} 7. Qe2 {[%emt 0:00:46]} Ngf6 {[%emt 0:03:12]} 8. Ng3 {[%emt 0:04:01]} Bxf3 {[%emt 0:03:10]} 9. Qxf3 {[%emt 0:00:56]} c6 {[%emt 0:00:07]} 10. O-O {[%emt 0:02:30]} g6 {[%emt 0:01:44]} 11. Re1 {[%emt 0:13:38]} Bg7 {[%emt 0:00:45]} 12. c3 {[%emt 0:01:07]} O-O {[%emt 0:00:21]} 13. h4 {[%emt 0:05:04]} h5 {[%emt 0:08:37]} 14. Bg5 {[%emt 0:03:05]} Qb6 {[%emt 0:00:43]} 15. Re2 {[%emt 0:00:35]} c5 {[%emt 0:40:30]} 16. dxc5 {[%emt 0:03:05]} Qxc5 {[%emt 0:00:06]} 17. Rae1 {[%emt 0:02:37]} Qc7 {[%emt 0:06:32]} 18. Bf4 {[%emt 0:06:11]} Qb6 {[%emt 0:01:44]} 19. Ne4 {[%emt 0:07:54]} Ng4 {[%emt 0:11:12]} 20. Ng5 {[%emt 0:03:22]} Rad8 {[%emt 0:04:57]} 21. Bc4 {[%emt 0:11:20]} Qc5 {[%emt 0:05:06]} 22. Bb3 {[%emt 0:11:33]} Nde5 {[%emt 0:02:03]} 23. Qe4 {[%emt 0:02:38]} Nd3 {[%emt 0:02:13]} 24. Rf1 {[%emt 0:07:56]} Nxf4 {[%emt 0:03:55]} 25. Qxf4 {[%emt 0:00:49]} Be5 {[%emt 0:00:46]} 26. Qc4 {[%emt 0:02:53]} Qb6 {[%emt 0:01:22]} 27. Nf3 {[%emt 0:02:51]} Bf6 {[%emt 0:01:10]} 28. Qe4 {[%emt 0:00:57]} Kg7 {[%emt 0:00:10]} 29. g3 {[%emt 0:00:20]} Rd7 {[%emt 0:00:41]} 30. Kg2 {[%emt 0:00:08]} Rfd8 {[%emt 0:00:07]} 31. Rfe1 {[%emt 0:01:10]} Qc5 {[%emt 0:00:19]} 32. a3 {[%emt 0:01:26]} b5 {[%emt 0:00:17]} 33. Qb4 {[%emt 0:01:14]} Qc6 {[%emt 0:01:17]} 34. Qe4 {[%emt 0:00:03]} Qb6 {[%emt 0:00:11]} 35. a4 {[%emt 0:01:02]} bxa4 {[%emt 0:00:17]} 36. Qxa4 {[%emt 0:00:58]} Rd6 {[%emt 0:02:10]} 37. Ba2 {[%emt 0:01:40]} R8d7 {[%emt 0:00:13]} 38. Qe4 {[%emt 0:00:16]} Qa5 {[%emt 0:00:23]} 39. Bb1 {[%emt 0:00:21]} Rd5 {[%emt 0:00:34]} 40. b4 {[%emt 0:00:30]} Qa3 {[%emt 0:00:54]} 41. c4 {[%emt 0:30:22]} Rd1 {[%emt 0:30:53]} 42. b5 {[%emt 0:01:04]} Rxe1 {[%emt 0:00:00]} 43. Rxe1 {[%emt 0:00:00]} Qc5 {[%emt 0:00:00]} 44. Qe2 {[%emt 0:00:00]} Bd4 {[%emt 0:00:00]} 45. Rf1 {[%emt 0:00:00]} Rc7 {[%emt 0:00:00]} 46. Nxd4 {[%emt 0:00:00]} Qxd4 {[%emt 0:00:00]} 47. Rc1 {[%emt 0:00:00]} Rc5 {[%emt 0:00:00]} 48. Ba2 {[%emt 0:00:00]} Rf5 {[%emt 0:00:00]} 49. Rf1 {[%emt 0:00:00]} Qc3 {[%emt 0:00:00]} 50. Bb1 {[%emt 0:00:00]} Rc5 {[%emt 0:00:00]} 51. Ba2 {[%emt 0:00:00]} Re5 {[%emt 0:00:00]} 52. Qd1 {[%emt 0:00:00]} Qb2 {[%emt 0:00:00]} 53. Qa1 {[%emt 0:04:33]} Qe2 {[%emt 0:00:00]} 54. Kg1 {[%emt 0:00:52]} Kh7 {[%emt 0:00:00]} 55. Bb3 {[%emt 0:01:17]} Re3 {[%emt 0:00:00]} 56. Qa2 {[%emt 0:01:32]} Qxa2 {[%emt 0:00:00]} 57. Bxa2 {[%emt 0:00:04]} Ra3 {[%emt 0:00:00]} 58. Rc1 {[%emt 0:00:27]} Rxa2 {[%emt 0:02:43]} 59. c5 {[%emt 0:00:10]} Nxf2 {[%emt 0:00:12]} 60. c6 {[%emt 0:00:03]} Ne4 {[%emt 0:00:10]} 61. c7 {[%emt 0:00:19]} Nd6 {[%emt 0:00:08]} 62. c8=Q {[%emt 0:02:57]} Nxc8 {[%emt 0:00:00]} 63. Rxc8 {[%emt 0:00:00]} Kg7 {[%emt 0:00:00]} 64. Rc7 {[%emt 0:00:17]} a5 {[%emt 0:01:29]} 65. Ra7 {[%emt 0:00:50]} a4 {[%emt 0:00:07]} 66. b6 {[%emt 0:00:08]} Rb2 {[%emt 0:00:06]} 67. Rxa4 {[%emt 0:00:10]} Rxb6 {[%emt 0:00:04]} 0-1

[Event "FIDE WSTC Open 65 2025"]
[Site "Prague"]
[Date "2025.02.18"]
[Round "2.10"]
[White "Ortega, Lexy"]
[Black "Carvalho, Herbert Abreu"]
[Result "1-0"]
[Annotator "ChessBase"]
[ECO "D90"]
[WhiteElo "2348"]
[BlackElo "2123"]
[PlyCount "53"]
[EventDate "2025.02.17"]
[EventType "team-tourn"]
[EventCountry "CZE"]
[SourceTitle "playchess.com"]
[Source "ChessBase"]
[SourceQuality "1"]
[TimeControl "40/5400+30:1800+30"]

1. d4 {[%emt 0:00:03]} Nf6 {[%emt 0:00:23]} 2. Nf3 {[%emt 0:00:03]} g6 {[%emt 0:01:28]} 3. c4 {[%emt 0:01:01]} c6 {[%emt 0:00:45]} 4. Nc3 {[%emt 0:00:18]} d5 {[%emt 0:00:06]} 5. cxd5 {[%emt 0:00:04]} cxd5 {[%emt 0:00:05]} 6. Bf4 {[%emt 0:00:02]} Bg7 {[%emt 0:00:59]} 7. e3 {[%emt 0:00:08]} O-O {[%emt 0:00:14]} 8. h3 {[%emt 0:00:28]} Qb6 {[%emt 0:03:23]} 9. a3 {[%emt 0:14:55]} Bf5 {[%emt 0:14:25]} 10. Na4 {[%emt 0:08:01]} Qd8 {[%emt 0:01:38]} 11. Rc1 {[%emt 0:05:17]} Nc6 {[%emt 0:01:41]} 12. b4 {[%emt 0:01:59]} Rc8 {[%emt 0:01:39]} 13. Be2 {[%emt 0:11:09]} Nd7 {[%emt 0:15:17]} 14. O-O {[%emt 0:03:14]} h6 {[%emt 0:07:39]} 15. Bg3 {[%emt 0:03:59]} g5 {[%emt 0:07:23]} 16. Qb3 {[%emt 0:02:11]} Nf6 {[%emt 0:03:45]} 17. Nc5 {[%emt 0:13:03]} b6 {[%emt 0:01:36]} 18. Na4 {[%emt 0:02:27]} Nb8 {[%emt 0:03:50]} 19. Nc3 {[%emt 0:01:20]} e6 {[%emt 0:02:59]} 20. Nb5 {[%emt 0:06:12]} a6 {[%emt 0:04:42]} 21. Nd6 {[%emt 0:04:06]} Rxc1 {[%emt 0:00:30]} 22. Rxc1 {[%emt 0:00:00]} Bh7 {[%emt 0:03:45]} 23. Rc8 {[%emt 0:03:45]} Qe7 {[%emt 0:04:16]} 24. Qc3 {[%emt 0:01:24]} Nfd7 {[%emt 0:04:20]} 25. Qc7 {[%emt 0:02:47]} f5 {[%emt 0:01:39]} 26. Ne5 {[%emt 0:02:16]} b5 {[%emt 0:03:56]} 27. Rxb8 {[%emt 0:02:07]} 1-0

[Event "FIDE WSTC Open 65 2025"]
[Site "Prague"]
[Date "2025.02.18"]
[Round "2.11"]
[White "Barreto, Ignacio C. de Barros"]
[Black "Sibilio, Mario"]
[Result "1/2-1/2"]
[Annotator "ChessBase"]
[ECO "D79"]
[WhiteElo "2048"]
[BlackElo "2229"]
[PlyCount "74"]
[EventDate "2025.02.17"]
[EventType "team-tourn"]
[EventCountry "CZE"]
[SourceTitle "playchess.com"]
[Source "ChessBase"]
[SourceQuality "1"]
[TimeControl "40/5400+30:1800+30"]

1. Nf3 {[%emt 0:00:06]} d6 {[%emt 0:02:15]} 2. g3 {[%emt 0:00:28]} g6 {[%emt 0:01:24]} 3. Bg2 {[%emt 0:00:21]} Bg7 {[%emt 0:00:09]} 4. O-O {[%emt 0:00:34]} Nf6 {[%emt 0:00:12]} 5. c4 {[%emt 0:01:45]} O-O {[%emt 0:00:21]} 6. Nc3 {[%emt 0:00:19]} c6 {[%emt 0:00:58]} 7. d3 {[%emt 0:03:35]} d5 {[%emt 0:01:04]} 8. cxd5 {[%emt 0:01:24]} cxd5 {[%emt 0:00:09]} 9. d4 {[%emt 0:00:07]} Ne4 {[%emt 0:01:47]} 10. Nxe4 {[%emt 0:15:03]} dxe4 {[%emt 0:00:08]} 11. Ng5 {[%emt 0:00:04]} Qxd4 {[%emt 0:09:13]} 12. Qxd4 {[%emt 0:05:53]} Bxd4 {[%emt 0:04:06]} 13. Rd1 {[%emt 0:02:58]} Nc6 {[%emt 0:00:47]} 14. Nxe4 {[%emt 0:05:14]} Bg4 {[%emt 0:06:30]} 15. Kf1 {[%emt 0:00:16]} Rfd8 {[%emt 0:00:16]} 16. h3 {[%emt 0:06:51]} Be6 {[%emt 0:04:28]} 17. Bd2 {[%emt 0:09:35]} Bxb2 {[%emt 0:07:17]} 18. Rab1 {[%emt 0:00:09]} Bd4 {[%emt 0:00:18]} 19. Rxb7 {[%emt 0:00:31]} Bb6 {[%emt 0:11:13]} 20. Ng5 {[%emt 0:07:39]} Bd5 {[%emt 0:01:46]} 21. Bxd5 {[%emt 0:14:19]} Rxd5 {[%emt 0:00:02]} 22. Nf3 {[%emt 0:00:20]} Re8 {[%emt 0:10:43]} 23. Rc1 {[%emt 0:01:44]} Na5 {[%emt 0:01:58]} 24. Bxa5 {[%emt 0:00:22]} Rxa5 {[%emt 0:00:06]} 25. Rc2 {[%emt 0:00:20]} Kf8 {[%emt 0:00:44]} 26. Rd7 {[%emt 0:01:37]} Rb8 {[%emt 0:00:27]} 27. Nd4 {[%emt 0:01:42]} Bxd4 {[%emt 0:10:02]} 28. Rxd4 {[%emt 0:00:04]} Rb7 {[%emt 0:00:05]} 29. Rd8+ {[%emt 0:03:13]} Kg7 {[%emt 0:00:02]} 30. Kg2 {[%emt 0:01:38]} h5 {[%emt 0:00:24]} 31. h4 {[%emt 0:01:22]} Ra3 {[%emt 0:01:46]} 32. Rdc8 {[%emt 0:03:15]} Rb6 {[%emt 0:02:49]} 33. R8c3 {[%emt 0:00:40]} Rba6 {[%emt 0:01:05]} 34. Rxa3 {[%emt 0:00:20]} Rxa3 {[%emt 0:00:05]} 35. e3 {[%emt 0:00:15]} Kf6 {[%emt 0:01:22]} 36. Kf3 {[%emt 0:00:10]} Ke5 {[%emt 0:02:15]} 37. Rd2 {[%emt 0:00:16]} Ke6 {[%emt 0:02:47]} 1/2-1/2

[Event "FIDE WSTC Open 65 2025"]
[Site "Prague"]
[Date "2025.02.18"]
[Round "2.12"]
[White "Ceschia, Ivano"]
[Black "Okamura, Milton Kasuo"]
[Result "0-1"]
[Annotator "ChessBase"]
[ECO "E14"]
[WhiteElo "2205"]
[BlackElo "2023"]
[PlyCount "94"]
[EventDate "2025.02.17"]
[EventType "team-tourn"]
[EventCountry "CZE"]
[SourceTitle "playchess.com"]
[Source "ChessBase"]
[SourceQuality "1"]
[TimeControl "40/5400+30:1800+30"]

1. d4 {[%emt 0:00:06]} d5 {[%emt 0:00:07]} 2. Nf3 {[%emt 0:00:06]} Nf6 {[%emt 0:00:11]} 3. e3 {[%emt 0:00:07]} e6 {[%emt 0:01:36]} 4. Bd3 {[%emt 0:00:30]} Be7 {[%emt 0:02:12]} 5. O-O {[%emt 0:00:52]} O-O {[%emt 0:00:21]} 6. b3 {[%emt 0:00:55]} b6 {[%emt 0:01:59]} 7. Bb2 {[%emt 0:00:49]} Bb7 {[%emt 0:00:53]} 8. c4 {[%emt 0:02:02]} Nbd7 {[%emt 0:01:41]} 9. Nc3 {[%emt 0:03:14]} c5 {[%emt 0:02:51]} 10. Rc1 {[%emt 0:06:52]} cxd4 {[%emt 0:03:44]} 11. exd4 {[%emt 0:00:27]} Rc8 {[%emt 0:04:06]} 12. Qe2 {[%emt 0:06:21]} dxc4 {[%emt 0:15:11]} 13. bxc4 {[%emt 0:00:23]} Re8 {[%emt 0:03:23]} 14. Rfd1 {[%emt 0:05:52]} Bd6 {[%emt 0:02:34]} 15. Ne5 {[%emt 0:09:48]} Bb8 {[%emt 0:06:46]} 16. Qe3 {[%emt 0:02:27]} Nf8 {[%emt 0:11:05]} 17. Bc2 {[%emt 0:15:13]} Qe7 {[%emt 0:13:39]} 18. Nb5 {[%emt 0:05:15]} a6 {[%emt 0:04:29]} 19. Ba3 {[%emt 0:00:42]} Qd8 {[%emt 0:00:11]} 20. Nc3 {[%emt 0:01:16]} Qc7 {[%emt 0:00:12]} 21. Ba4 {[%emt 0:15:36]} Red8 {[%emt 0:00:15]} 22. Nb5 {[%emt 0:02:10]} axb5 {[%emt 0:07:29]} 23. cxb5 {[%emt 0:00:07]} Nd5 {[%emt 0:01:31]} 24. Qh3 {[%emt 0:09:03]} Nc3 {[%emt 0:00:50]} 25. Kh1 {[%emt 0:05:42]} Nxa4 {[%emt 0:06:12]} 26. Rxc7 {[%emt 0:00:22]} Rxc7 {[%emt 0:02:22]} 27. Nc6 {[%emt 0:02:47]} Bxc6 {[%emt 0:00:57]} 28. bxc6 {[%emt 0:00:04]} Rxc6 {[%emt 0:04:22]} 29. Qb3 {[%emt 0:00:16]} Nc3 {[%emt 0:00:13]} 30. Rc1 {[%emt 0:00:33]} Rdc8 {[%emt 0:00:08]} 31. g3 {[%emt 0:00:15]} Nd5 {[%emt 0:02:23]} 32. Rxc6 {[%emt 0:00:15]} Rxc6 {[%emt 0:00:06]} 33. Qa4 {[%emt 0:00:05]} Rc8 {[%emt 0:00:27]} 34. h4 {[%emt 0:00:55]} h6 {[%emt 0:00:27]} 35. Qa8 {[%emt 0:00:29]} Rd8 {[%emt 0:00:16]} 36. Qc6 {[%emt 0:00:39]} Nd7 {[%emt 0:00:55]} 37. Kg2 {[%emt 0:01:56]} N7f6 {[%emt 0:00:09]} 38. Kf3 {[%emt 0:00:15]} Ne8 {[%emt 0:01:19]} 39. Bc1 {[%emt 0:02:25]} Bd6 {[%emt 0:00:48]} 40. g4 {[%emt 0:00:22]} Be7 {[%emt 0:00:25]} 41. g5 {[%emt 0:30:26]} hxg5 {[%emt 0:30:06]} 42. hxg5 {[%emt 0:00:07]} g6 {[%emt 0:00:11]} 43. Kg4 {[%emt 0:02:11]} Ng7 {[%emt 0:00:21]} 44. Kf3 {[%emt 0:01:17]} Nf5 {[%emt 0:00:22]} 45. Be3 {[%emt 0:00:43]} Kg7 {[%emt 0:01:36]} 46. Qb5 {[%emt 0:00:37]} Rh8 {[%emt 0:00:14]} 47. Qb2 {[%emt 0:00:00]} Nfxe3 {[%emt 0:00:00]} 0-1

[Event "FIDE WSTC Open 65 2025"]
[Site "Prague"]
[Date "2025.02.18"]
[Round "2.13"]
[White "Wirthensohn, Heinz"]
[Black "Yrjola, Jouni"]
[Result "1/2-1/2"]
[Annotator "ChessBase"]
[ECO "B38"]
[WhiteElo "2273"]
[BlackElo "2287"]
[PlyCount "41"]
[EventDate "2025.02.17"]
[EventType "team-tourn"]
[EventCountry "CZE"]
[SourceTitle "playchess.com"]
[Source "ChessBase"]
[SourceQuality "1"]
[TimeControl "40/5400+30:1800+30"]

1. Nf3 {[%emt 0:00:02]} c5 {[%emt 0:01:22]} 2. c4 {[%emt 0:00:21]} g6 {[%emt 0:00:57]} 3. e4 {[%emt 0:01:57]} Bg7 {[%emt 0:00:21]} 4. d4 {[%emt 0:00:08]} cxd4 {[%emt 0:01:22]} 5. Nxd4 {[%emt 0:00:07]} Nc6 {[%emt 0:00:07]} 6. Be3 {[%emt 0:00:57]} Qb6 {[%emt 0:00:32]} 7. Nb3 {[%emt 0:03:10]} Qd8 {[%emt 0:00:39]} 8. Qd2 {[%emt 0:01:15]} Nf6 {[%emt 0:03:10]} 9. f3 {[%emt 0:00:58]} d6 {[%emt 0:00:15]} 10. Nc3 {[%emt 0:00:11]} Be6 {[%emt 0:01:24]} 11. Be2 {[%emt 0:06:22]} O-O {[%emt 0:05:57]} 12. O-O {[%emt 0:00:43]} a5 {[%emt 0:17:08]} 13. Nd4 {[%emt 0:11:02]} Nxd4 {[%emt 0:02:22]} 14. Bxd4 {[%emt 0:00:10]} a4 {[%emt 0:03:25]} 15. b4 {[%emt 0:08:02]} Nd7 {[%emt 0:19:55]} 16. a3 {[%emt 0:05:50]} Bxd4+ {[%emt 0:02:07]} 17. Qxd4 {[%emt 0:01:24]} Qb6 {[%emt 0:00:10]} 18. Qxb6 {[%emt 0:04:48]} Nxb6 {[%emt 0:00:06]} 19. Nd5 {[%emt 0:00:12]} Bxd5 {[%emt 0:13:19]} 20. cxd5 {[%emt 0:03:00]} Rfc8 {[%emt 0:03:49]} 21. Rac1 {[%emt 0:02:51]} 1/2-1/2

[Event "FIDE WSTC Open 65 2025"]
[Site "Prague"]
[Date "2025.02.18"]
[Round "2.14"]
[White "Binham, Timothy F."]
[Black "Sadeghi, Hassan Roger"]
[Result "1-0"]
[Annotator "ChessBase"]
[ECO "A43"]
[WhiteElo "2250"]
[BlackElo "2029"]
[PlyCount "75"]
[EventDate "2025.02.17"]
[EventType "team-tourn"]
[EventCountry "CZE"]
[SourceTitle "playchess.com"]
[Source "ChessBase"]
[SourceQuality "1"]
[TimeControl "40/5400+30:1800+30"]

1. Nf3 {[%emt 0:00:05]} Nf6 {[%emt 0:00:37]} 2. d4 {[%emt 0:00:11]} c5 {[%emt 0:00:45]} 3. d5 {[%emt 0:00:38]} d6 {[%emt 0:01:24]} 4. Nc3 {[%emt 0:00:24]} g6 {[%emt 0:01:26]} 5. e4 {[%emt 0:00:08]} Bg7 {[%emt 0:00:08]} 6. Bb5+ {[%emt 0:01:05]} Bd7 {[%emt 0:00:40]} 7. a4 {[%emt 0:00:42]} Na6 {[%emt 0:02:35]} 8. O-O {[%emt 0:02:47]} Nc7 {[%emt 0:01:11]} 9. Bc4 {[%emt 0:04:41]} O-O {[%emt 0:03:13]} 10. Re1 {[%emt 0:02:47]} a6 {[%emt 0:04:34]} 11. Qd3 {[%emt 0:08:09]} Rb8 {[%emt 0:07:02]} 12. a5 {[%emt 0:01:40]} b5 {[%emt 0:01:45]} 13. axb6 {[%emt 0:01:18]} Rxb6 {[%emt 0:00:06]} 14. Ra2 {[%emt 0:05:19]} Nb5 {[%emt 0:15:48]} 15. Bd2 {[%emt 0:11:37]} Ng4 {[%emt 0:12:36]} 16. h3 {[%emt 0:06:06]} Ne5 {[%emt 0:00:21]} 17. Nxe5 {[%emt 0:00:30]} Bxe5 {[%emt 0:00:09]} 18. Ne2 {[%emt 0:13:16]} Qc8 {[%emt 0:09:02]} 19. Bh6 {[%emt 0:14:38]} Re8 {[%emt 0:00:37]} 20. f4 {[%emt 0:00:55]} Bf6 {[%emt 0:02:14]} 21. Ng3 {[%emt 0:01:55]} e6 {[%emt 0:06:31]} 22. c3 {[%emt 0:02:02]} Nc7 {[%emt 0:03:05]} 23. Re2 {[%emt 0:01:29]} exd5 {[%emt 0:04:41]} 24. exd5 {[%emt 0:00:16]} Bg7 {[%emt 0:06:18]} 25. Bxg7 {[%emt 0:00:35]} Kxg7 {[%emt 0:00:02]} 26. b4 {[%emt 0:03:41]} Rxe2 {[%emt 0:02:06]} 27. Rxe2 {[%emt 0:00:26]} Nb5 {[%emt 0:00:27]} 28. Ne4 {[%emt 0:05:21]} Bf5 {[%emt 0:02:04]} 29. Bxb5 {[%emt 0:01:14]} Bxe4 {[%emt 0:02:02]} 30. Rxe4 {[%emt 0:00:35]} Rxb5 {[%emt 0:00:41]} 31. Rc4 {[%emt 0:06:49]} Qf5 {[%emt 0:00:24]} 32. Qxf5 {[%emt 0:00:58]} gxf5 {[%emt 0:00:02]} 33. bxc5 {[%emt 0:00:40]} dxc5 {[%emt 0:00:05]} 34. Ra4 {[%emt 0:01:40]} a5 {[%emt 0:01:06]} 35. Kf2 {[%emt 0:00:36]} Kf6 {[%emt 0:01:08]} 36. Ke3 {[%emt 0:00:17]} Ke7 {[%emt 0:01:04]} 37. Kd3 {[%emt 0:00:29]} Rb2 {[%emt 0:03:47]} 38. Kc4 {[%emt 0:00:48]} 1-0

[Event "FIDE WSTC Open 65 2025"]
[Site "Prague"]
[Date "2025.02.18"]
[Round "2.15"]
[White "Zuelle, Bruno"]
[Black "Henttinen, Markku I.O."]
[Result "1/2-1/2"]
[Annotator "ChessBase"]
[ECO "A38"]
[WhiteElo "2038"]
[BlackElo "2223"]
[PlyCount "42"]
[EventDate "2025.02.17"]
[EventType "team-tourn"]
[EventCountry "CZE"]
[SourceTitle "playchess.com"]
[Source "ChessBase"]
[SourceQuality "1"]
[TimeControl "40/5400+30:1800+30"]

1. Nf3 {[%emt 0:00:05]} c5 {[%emt 0:00:13]} 2. c4 {[%emt 0:00:14]} Nc6 {[%emt 0:01:13]} 3. Nc3 {[%emt 0:00:26]} g6 {[%emt 0:01:00]} 4. g3 {[%emt 0:00:57]} Nf6 {[%emt 0:04:26]} 5. Bg2 {[%emt 0:00:31]} d5 {[%emt 0:03:20]} 6. cxd5 {[%emt 0:01:59]} Nxd5 {[%emt 0:00:14]} 7. Nxd5 {[%emt 0:01:11]} Qxd5 {[%emt 0:00:09]} 8. O-O {[%emt 0:00:54]} Bg7 {[%emt 0:01:19]} 9. d3 {[%emt 0:01:03]} O-O {[%emt 0:02:13]} 10. Be3 {[%emt 0:01:26]} Qd6 {[%emt 0:01:18]} 11. Rc1 {[%emt 0:01:56]} Nd4 {[%emt 0:07:11]} 12. Nxd4 {[%emt 0:02:39]} cxd4 {[%emt 0:00:21]} 13. Bf4 {[%emt 0:01:27]} e5 {[%emt 0:01:03]} 14. Bg5 {[%emt 0:05:02]} h6 {[%emt 0:04:58]} 15. Bd2 {[%emt 0:00:32]} Be6 {[%emt 0:01:49]} 16. Qa4 {[%emt 0:04:27]} Qb6 {[%emt 0:04:12]} 17. Rc2 {[%emt 0:06:38]} Rfc8 {[%emt 0:01:42]} 18. Rfc1 {[%emt 0:02:29]} Bf8 {[%emt 0:03:17]} 19. Rxc8 {[%emt 0:04:21]} Rxc8 {[%emt 0:03:35]} 20. Rxc8 {[%emt 0:01:01]} Bxc8 {[%emt 0:00:08]} 21. Qe8 {[%emt 0:05:05]} Qe6 {[%emt 0:00:44]} 1/2-1/2